bitfinex-derivatives/quotes_BTCF0:USTF0_20220102
["timestamp","ask_amount","ask_price","bid_price","bid_amount"]
[1641148994029,0.10292015,46937.0,46928.0,0.12]
[1641148994431,1.16826815,46937.0,46928.0,0.151]
[1641148994629,1.16826815,46937.0,46928.0,0.29133567]
[1641148995431,0.10292015,46937.0,46930.0,0.06]
[1641148995634,0.10292015,46937.0,46928.0,0.29133567]
[1641148995831,0.10292015,46937.0,46928.0,0.26033567]
[1641148996031,0.10292015,46937.0,46928.0,0.32033567]
[1641148996232,0.10292015,46937.0,46929.0,0.01210803]
[1641148996433,0.12392015,46937.0,46929.0,0.01210803]
[1641148996832,0.021,46937.0,46934.0,0.18]
[1641148997034,1.9421048,46950.0,46934.0,0.26144]
[1641148997240,0.83648231,46951.0,46944.0,0.18]
[1641148997535,0.0323,46947.0,46944.0,0.27233]
[1641148998433,0.0323,46947.0,46944.0,0.30433]
[1641148998637,0.0323,46947.0,46946.0,0.14033567]
[1641149000434,0.0323,46947.0,46946.0,0.18433567]
[1641149001635,0.0323,46947.0,46946.0,0.14033567]
[1641149002436,0.0323,46947.0,46946.0,0.18433567]
[1641149003735,0.0323,46947.0,46946.0,0.14033567]
[1641149004335,0.0323,46947.0,46946.0,0.18433567]
[1641149005735,0.0323,46947.0,46946.0,0.14033567]
[1641149006338,0.0323,46947.0,46946.0,0.18433567]
[1641149006741,0.10861,46947.0,46946.0,0.18433567]
[1641149007740,0.10861,46947.0,46946.0,0.14033567]
[1641149008344,0.10861,46947.0,46946.0,0.18433567]
[1641149009839,0.10861,46947.0,46946.0,0.14033567]
[1641149010439,0.12561,46947.0,46946.0,0.18333567]
[1641149010839,0.12561,46947.0,46946.0,0.043]
[1641149011040,0.24667399,46947.0,46946.0,0.043]
[1641149011642,0.22967399,46947.0,46937.0,0.12]
[1641149011841,0.22967399,46947.0,46931.0,1.8528]
[1641149012041,0.22967399,46947.0,46935.0,0.18]
[1641149012242,0.22967399,46947.0,46932.0,0.129794]
[1641149012445,0.26867399,46947.0,46932.0,0.14190043]
[1641149012642,0.26139966,46946.0,46936.0,0.14033567]
[1641149013141,0.14033567,46946.0,46937.0,0.01210643]
[1641149013343,0.14033567,46946.0,46940.0,0.18]
[1641149014342,0.17933567,46946.0,46940.0,0.222]
[1641149015742,0.14033567,46946.0,46940.0,0.18]
[1641149016042,0.14033567,46946.0,46937.0,0.18]
[1641149016245,0.14033567,46946.0,46941.0,0.18]
[1641149016442,0.17933567,46946.0,46940.0,0.042]
[1641149016642,0.17933567,46946.0,46940.0,0.222]
[1641149016843,0.17933567,46946.0,46940.0,0.042]
[1641149017442,0.17933567,46946.0,46941.0,0.01210598]
[1641149017842,0.14033567,46946.0,46941.0,0.01210598]
[1641149018245,0.14033567,46946.0,46938.0,0.01210598]
[1641149018444,0.17933567,46946.0,46941.0,0.042]
[1641149019845,0.14033567,46946.0,46937.0,0.009794]
[1641149020246,0.14033567,46946.0,46938.0,0.01210624]
[1641149020447,0.17933567,46946.0,46938.0,0.01210624]
[1641149020847,0.17933567,46946.0,46937.0,0.051794]
[1641149020848,0.12106527,46945.0,46939.0,0.18]
[1641149021247,0.17933567,46946.0,46939.0,0.18]
[1641149021855,0.14033567,46946.0,46939.0,0.18]
[1641149022249,0.14033567,46946.0,46937.0,0.009794]
[1641149022449,0.17933567,46946.0,46939.0,0.042]
[1641149022650,0.17933567,46946.0,46939.0,0.222]
[1641149023651,0.17933567,46946.0,46939.0,0.042]
[1641149023851,0.12106503,46945.0,46939.0,0.12]
[1641149024251,0.12106503,46945.0,46937.0,0.009794]
[1641149024452,0.16006503,46945.0,46939.0,0.042]
[1641149024853,0.039,46945.0,46939.0,0.042]
[1641149025651,0.039,46945.0,46937.0,0.009794]
[1641149025852,0.14033567,46946.0,46937.0,0.009794]
[1641149026052,0.14033567,46946.0,46938.0,0.01210654]
[1641149026251,0.12106575,46945.0,46938.0,0.01210654]
[1641149027154,0.12106575,46945.0,46937.0,0.051794]
[1641149027952,0.12106575,46945.0,46938.0,0.01210676]
[1641149028154,0.12106575,46945.0,46937.0,0.051794]
[1641149028353,0.12106575,46945.0,46937.0,0.009794]
[1641149028553,0.52296298,46945.0,46938.0,0.042]
[1641149028953,0.52296298,46945.0,46939.0,0.06]
[1641149029156,0.12106575,46944.0,46939.0,0.18]
[1641149030356,0.12106575,46944.0,46937.0,0.009794]
[1641149030655,0.063,46944.0,46939.0,0.066]
[1641149031956,0.36189723,46945.0,46937.0,0.009794]
[1641149032456,0.42489723,46945.0,46937.0,0.075794]
[1641149033056,0.063,46945.0,46937.0,0.075794]
[1641149033458,0.83648231,46941.0,46940.0,0.36208676]
[1641149034457,0.83648231,46941.0,46940.0,0.42908676]
[1641149035861,0.83648231,46941.0,46940.0,0.36208676]
[1641149036460,0.83648231,46941.0,46940.0,0.42908676]
[1641149037161,0.83648231,46941.0,46940.0,0.067]
[1641149037774,0.83648231,46941.0,46939.0,0.36208676]
[1641149038375,0.83648231,46941.0,46939.0,0.42908676]
[1641149039279,0.83648231,46940.0,46939.0,0.42908676]
[1641149039780,0.83648231,46941.0,46939.0,0.36208676]
[1641149040480,0.83648231,46941.0,46939.0,0.42908676]
[1641149041478,0.83648231,46941.0,46940.0,0.36208676]
[1641149042382,0.83648231,46941.0,46940.0,0.42908676]
[1641149043481,1.19902306,46943.0,46940.0,0.50273676]
[1641149043683,0.09081507,46945.0,46942.0,0.18]
[1641149043881,0.09081507,46945.0,46944.0,0.181]
[1641149044484,0.09081507,46945.0,46944.0,0.2621061]
[1641149044683,0.09081507,46945.0,46944.0,0.40244177]
[1641149045084,1.31746663,46947.0,46944.0,0.40144177]
[1641149045284,1.31746663,46953.0,46944.0,0.40144177]
[1641149045485,1.31746663,46953.0,46948.0,0.18]
[1641149045885,0.12104889,46952.0,46948.0,0.18]
[1641149046085,0.12104889,46952.0,46944.0,0.7438136]
[1641149046484,1.31746663,46953.0,46948.0,0.066]
[1641149046686,1.31746663,46954.0,46948.0,0.066]
[1641149046989,0.06030484,46952.0,46948.0,0.066]
[1641149047186,0.18135458,46952.0,46948.0,0.066]
[1641149047387,0.12104974,46953.0,46948.0,0.186]
[1641149047785,0.12104974,46953.0,46948.0,0.47996684]
[1641149047986,1.31746663,46954.0,46948.0,0.47996684]
[1641149048386,0.12104373,46953.0,46948.0,0.54496684]
[1641149048687,0.12104373,46953.0,46951.0,0.60347793]
[1641149048688,1.31746663,46952.0,46951.0,0.60347793]
[1641149049086,1.43851036,46952.0,46951.0,0.60347793]
[1641149049288,1.31746663,46952.0,46951.0,0.60347793]
[1641149050488,1.31746663,46952.0,46951.0,0.186]
[1641149051388,1.31746663,46954.0,46951.0,0.186]
[1641149051588,1.31746663,46954.0,46953.0,0.18]
[1641149052688,0.14033567,46955.0,46953.0,0.248]
[1641149052891,0.14033567,46955.0,46953.0,0.068]
[1641149053289,0.14033567,46955.0,46954.0,0.83833475]
[1641149053789,0.14033567,46955.0,46954.0,1.01833475]
[1641149054192,0.14033567,46955.0,46953.0,0.83833475]
[1641149054493,0.19833567,46955.0,46954.0,0.067]
[1641149054896,1.37546663,46955.0,46954.0,0.067]
[1641149055695,0.058,46955.0,46954.0,0.90533475]
[1641149055995,1.31746663,46956.0,46954.0,0.83833475]
[1641149056595,1.31746663,46956.0,46954.0,0.90533475]
[1641149057596,1.31746663,46956.0,46955.0,0.59902757]
[1641149058499,1.31746663,46956.0,46955.0,0.66602757]
[1641149059401,1.52828806,46959.0,46955.0,1.5731846]
[1641149059799,1.52828806,46959.0,46955.0,1.5061846]
[1641149060002,1.52828806,46959.0,46955.0,0.59902757]
[1641149060200,1.52828806,46959.0,46957.0,0.36086175]
[1641149060601,1.62828806,46959.0,46957.0,0.36086175]
[1641149061202,1.80828806,46959.0,46957.0,0.36086175]
[1641149061404,0.09079139,46958.0,46957.0,0.36086175]
[1641149061601,0.18392139,46958.0,46957.0,0.36086175]
[1641149062102,0.68392139,46958.0,46957.0,0.35886175]
[1641149062303,1.79692139,46958.0,46952.0,1.20097035]
[1641149062505,1.81430592,46953.0,46950.0,0.84310587]
[1641149062703,1.793,46951.0,46950.0,0.2861736]
[1641149062903,2.07367134,46951.0,46950.0,0.2861736]
[1641149063104,2.69514934,46951.0,46950.0,0.2861736]
[1641149063503,2.69514934,46951.0,46941.0,2.3144245]
[1641149063704,0.18,46943.0,46941.0,2.3144245]
[1641149063903,0.24921,46943.0,46941.0,0.86163268]
[1641149064106,0.24921,46943.0,46939.0,0.63958969]
[1641149064304,0.0623021,46942.0,46939.0,0.63958969]
[1641149064504,0.0623021,46942.0,46941.0,0.099]
[1641149065107,0.15309349,46942.0,46941.0,0.099]
[1641149065906,0.15309349,46942.0,46933.0,0.14033567]
[1641149066503,0.25009349,46942.0,46934.0,0.01210787]
[1641149066704,0.09079139,46941.0,46934.0,0.87255586]
[1641149067105,0.09079139,46941.0,46934.0,0.86044799]
[1641149067807,0.09079139,46941.0,46935.0,0.86044799]
[1641149068607,0.18979139,46941.0,46935.0,0.96644799]
[1641149068807,0.18979139,46941.0,46936.0,0.86044799]
[1641149070007,0.09079139,46940.0,46933.0,0.14033567]
[1641149070506,0.09079139,46941.0,46934.0,0.64068613]
[1641149070706,1.20789538,46938.0,46934.0,0.65279397]
[1641149071206,1.20789538,46938.0,46934.0,0.64068613]
[1641149071611,1.33074498,46938.0,46937.0,0.84766373]
[1641149072008,1.42153637,46938.0,46937.0,0.84766373]
[1641149072610,1.42153637,46938.0,46937.0,0.95666373]
[1641149073710,1.54262086,46938.0,46937.0,0.95666373]
[1641149073912,1.54262086,46938.0,46937.0,0.84766373]
[1641149074312,0.21187588,46938.0,46937.0,0.84766373]
[1641149074512,0.31487588,46938.0,46937.0,0.95066373]
[1641149074712,0.31487588,46938.0,46937.0,0.46630612]
[1641149075915,0.21187588,46938.0,46937.0,0.36330612]
[1641149076516,0.19379139,46938.0,46937.0,0.46530612]
[1641149076918,0.45521156,46938.0,46937.0,0.46530612]
[1641149077623,1.78724626,46938.0,46937.0,0.102]
[1641149078023,1.68424626,46938.0,46936.0,0.36330612]
[1641149078621,1.78224626,46938.0,46936.0,0.47130612]
[1641149078824,0.32912706,46938.0,46936.0,0.108]
[1641149079032,0.32912706,46938.0,46937.0,1.22185252]
[1641149079931,0.23112706,46938.0,46937.0,1.22185252]
[1641149080335,0.23112706,46938.0,46937.0,0.61634232]
[1641149080538,0.33812706,46938.0,46937.0,0.71034232]
[1641149080735,1.6685565,46938.0,46937.0,1.55800605]
[1641149080937,1.78964353,46938.0,46937.0,1.55800605]
[1641149081837,0.35221409,46938.0,46937.0,0.84766373]
[1641149082237,1.80533329,46938.0,46937.0,0.84766373]
[1641149082439,1.80533329,46938.0,46936.0,0.36332026]
[1641149082638,1.91233329,46938.0,46937.0,0.097]
[1641149082837,1.79124626,46938.0,46937.0,0.097]
[1641149084042,1.68424626,46938.0,46936.0,0.36332026]
[1641149084641,1.78824626,46938.0,46936.0,0.46632026]
[1641149085344,0.09079139,46937.0,46936.0,0.103]
[1641149086542,0.18779139,46937.0,46936.0,0.105]
[1641149087544,1.51600926,46937.0,46936.0,1.56751928]
[1641149088047,1.41900926,46937.0,46936.0,1.46251928]
[1641149088244,1.50931926,46937.0,46936.0,1.46251928]
[1641149088445,1.50931926,46937.0,46936.0,0.84766373]
[1641149088645,0.28810139,46937.0,46936.0,0.94266373]
[1641149088846,0.28810139,46937.0,46936.0,0.095]
[1641149090046,1.63422059,46937.0,46933.0,0.60552359]
[1641149090652,1.77822059,46937.0,46933.0,0.74452359]
[1641149090846,1.63624339,46936.0,46933.0,0.139]
[1641149091647,1.54391059,46935.0,46933.0,0.139]
[1641149091847,1.54391059,46935.0,46931.0,0.60552359]
[1641149092646,1.32582859,46932.0,46931.0,0.75052359]
[1641149093446,0.84304341,46932.0,46931.0,0.75052359]
[1641149093647,0.84304341,46932.0,46931.0,0.145]
[1641149093847,0.84304341,46932.0,46928.0,0.14033567]
[1641149094247,0.84304341,46932.0,46929.0,0.01210922]
[1641149094648,0.98004341,46932.0,46929.0,0.01210922]
[1641149095250,0.36148538,46930.0,46929.0,0.01210922]
[1641149095550,0.38279998,46930.0,46929.0,0.01210922]
[1641149095753,1.97448538,46930.0,46928.0,0.75452359]
[1641149095951,1.793,46929.0,46928.0,0.60552359]
[1641149096350,1.793,46929.0,46927.0,0.84766373]
[1641149096552,0.001,46928.0,46927.0,0.84766373]
[1641149096950,2.93992381,46928.0,46927.0,0.84766373]
[1641149097151,2.93992381,46928.0,46924.0,0.60504378]
[1641149097350,1.81331813,46925.0,46924.0,0.60504378]
[1641149097550,1.87339813,46925.0,46924.0,0.60504378]
[1641149097758,1.87339813,46925.0,46923.0,0.84766373]
[1641149098152,1.87339813,46925.0,46917.0,0.14033567]
[1641149098355,1.292,46922.0,46917.0,0.14033567]
[1641149099253,1.20333647,46921.0,46917.0,0.14033567]
[1641149099455,2.31533647,46921.0,46917.0,0.14033567]
[1641149099652,1.20333647,46921.0,46917.0,0.14033567]
[1641149100051,1.29412786,46921.0,46917.0,0.14033567]
[1641149100451,0.08675609,46920.0,46917.0,0.14033567]
[1641149100653,0.08675609,46920.0,46919.0,0.103]
[1641149101655,1.19973516,46920.0,46919.0,0.103]
[1641149101855,1.78127516,46920.0,46919.0,0.02]
[1641149102055,1.28127516,46920.0,46919.0,0.02]
[1641149102256,0.25908748,46920.0,46919.0,0.02]
[1641149102655,0.41208748,46920.0,46919.0,0.02]
[1641149102854,2.02408748,46920.0,46919.0,0.02]
[1641149103255,2.14408748,46920.0,46919.0,0.02]
[1641149103457,2.20508748,46920.0,46919.0,0.02]
[1641149103858,2.07340737,46920.0,46919.0,0.0001]
[1641149104061,2.07340737,46920.0,46917.0,0.14033567]
[1641149104261,0.001,46918.0,46917.0,0.14033567]
[1641149104460,1.113,46918.0,46917.0,0.14033567]
[1641149104662,1.613,46918.0,46917.0,0.14033567]
[1641149104860,1.63432179,46918.0,46917.0,0.14033567]
[1641149105062,2.83765826,46918.0,46917.0,0.14033567]
[1641149105863,1.63432179,46918.0,46917.0,0.14033567]
[1641149106261,1.72511318,46918.0,46917.0,0.14033567]
[1641149106759,1.87511318,46918.0,46917.0,0.14033567]
[1641149107960,1.72511318,46918.0,46917.0,0.14033567]
[1641149108762,1.87611318,46918.0,46917.0,0.14033567]
[1641149110063,1.72511318,46918.0,46917.0,0.14033567]
[1641149110763,1.88011318,46918.0,46917.0,0.14033567]
[1641149111567,0.88925492,46918.0,46917.0,0.14033567]
[1641149111768,0.38825492,46918.0,46917.0,0.14033567]
[1641149111967,0.21193313,46918.0,46917.0,0.14033567]
[1641149112168,0.23325548,46918.0,46917.0,0.14033567]
[1641149112768,0.36625548,46918.0,46917.0,0.14033567]
[1641149113570,0.36625548,46918.0,46917.0,0.7523074]
[1641149113773,0.36625548,46918.0,46917.0,1.35754502]
[1641149114169,0.23325548,46918.0,46917.0,1.35754502]
[1641149114371,0.11211374,46918.0,46917.0,1.35754502]
[1641149114571,0.61114596,46918.0,46917.0,0.50378897]
[1641149114770,0.86128023,46918.0,46917.0,0.50378897]
[1641149115470,0.36224801,46918.0,46917.0,0.50378897]
[1641149116073,0.23324801,46918.0,46917.0,0.50378897]
[1641149116275,0.11211374,46918.0,46917.0,0.50378897]
[1641149116776,0.22079139,46918.0,46917.0,0.58211297]
[1641149116974,0.02131632,46925.0,46917.0,0.58211297]
[1641149117373,0.02131632,46925.0,46920.0,0.18]
[1641149117575,1.33241576,46923.0,46922.0,0.84766373]
[1641149118674,1.33241576,46923.0,46922.0,1.00766373]
[1641149119378,1.33241576,46923.0,46922.0,1.1479994]
[1641149119777,1.33241576,46925.0,46922.0,0.30033567]
[1641149120189,1.33241576,46925.0,46924.0,0.18]
[1641149120387,1.33241576,46925.0,46922.0,0.14033567]
[1641149120587,1.33241576,46925.0,46924.0,0.18]
[1641149120788,1.33241576,46925.0,46924.0,0.34]
[1641149120993,0.0313,46932.0,46924.0,0.34]
[1641149121188,0.0313,46932.0,46929.0,0.18]
[1641149121395,0.0313,46932.0,46931.0,0.14033567]
[1641149121796,0.15239974,46932.0,46931.0,0.14033567]
[1641149122796,0.15239974,46932.0,46931.0,0.77292907]
[1641149123196,1.45335372,46933.0,46931.0,0.77292907]
[1641149123603,1.48555372,46933.0,46932.0,0.009794]
[1641149123799,0.49903222,46938.0,46932.0,0.189794]
[1641149124201,0.49903222,46938.0,46937.0,0.18]
[1641149124404,0.53163222,46938.0,46937.0,0.189794]
[1641149124602,0.0326,46938.0,46937.0,0.02190187]
[1641149124803,1.57421247,46942.0,46937.0,0.39690187]
[1641149125001,0.28067134,46946.0,46940.0,0.18]
[1641149125402,0.0514,46944.0,46943.0,0.06]
[1641149125801,0.0514,46944.0,46943.0,0.18]
[1641149126205,0.0514,46944.0,46939.0,0.18]
[1641149126404,0.0514,46944.0,46943.0,0.18]
[1641149126606,0.0514,46944.0,46942.0,0.36206117]
[1641149127804,0.0514,46944.0,46943.0,0.06]
[1641149128005,0.0514,46944.0,46943.0,0.18]
[1641149128209,0.0514,46944.0,46943.0,0.189794]
[1641149128705,0.0514,46944.0,46943.0,0.382794]
[1641149129505,0.0514,46944.0,46943.0,0.52312967]
[1641149129907,0.89798692,46944.0,46943.0,0.52312967]
[1641149130206,0.89798692,46944.0,46943.0,0.33012967]
[1641149130804,0.89798692,46944.0,46943.0,0.51912967]
[1641149131007,0.97636387,46944.0,46943.0,0.189]
[1641149131308,0.85553911,46944.0,46940.0,0.36206117]
[1641149131507,0.92662911,46944.0,46940.0,0.36206117]
[1641149131708,1.06696478,46944.0,46940.0,0.36206117]
[1641149131907,0.12107838,46943.0,46940.0,0.36206117]
[1641149132109,0.02130913,46941.0,46940.0,0.36206117]
[1641149132307,0.12107838,46943.0,46940.0,0.36206117]
[1641149132509,0.12107838,46943.0,46935.0,0.06]
[1641149132510,0.23320658,46943.0,46935.0,0.18]
[1641149132708,0.193,46941.0,46935.0,0.18]
[1641149133111,0.18,46938.0,46934.0,0.36206117]
[1641149133310,0.02131398,46935.0,46934.0,0.36206117]
[1641149133509,0.5,46936.0,46934.0,0.36206117]
[1641149133711,0.02131346,46935.0,46933.0,0.36206117]
[1641149134608,0.12109944,46934.0,46933.0,0.36206117]
[1641149134808,0.19231944,46934.0,46933.0,0.36206117]
[1641149135209,0.26173888,46934.0,46933.0,0.36206117]
[1641149135410,0.35255896,46934.0,46933.0,0.36206117]
[1641149135610,0.35255896,46934.0,46927.0,0.36206117]
[1641149136011,0.23145952,46934.0,46927.0,0.36206117]
[1641149136811,0.41145952,46934.0,46927.0,0.36206117]
[1641149137013,0.41145952,46934.0,46927.0,0.54206117]
[1641149137213,0.36292165,46928.0,46926.0,0.36206117]
[1641149137611,0.36292165,46928.0,46927.0,0.01210984]
[1641149137812,1.30036908,46933.0,46927.0,0.01210984]
[1641149138011,0.10056204,46932.0,46927.0,0.01210984]
[1641149138212,0.17991204,46932.0,46925.0,0.01210984]
[1641149138411,1.33036751,46931.0,46927.0,1.21018849]
[1641149139017,1.33036751,46931.0,46927.0,1.39018849]
[1641149139414,1.42118759,46931.0,46929.0,0.8424967]
[1641149140414,1.33036751,46930.0,46929.0,1.63336422]
[1641149141416,0.27882008,46931.0,46929.0,0.79086752]
[1641149141617,0.07554,46930.0,46929.0,0.79086752]
[1641149142415,0.16636008,46930.0,46929.0,1.63182515]
[1641149142816,0.35936008,46930.0,46929.0,1.63182515]
[1641149144720,0.35436008,46930.0,46929.0,1.63182515]
[1641149145118,0.35436008,46930.0,46929.0,0.79086752]
[1641149146118,0.2874645,46930.0,46929.0,0.79086752]
[1641149146721,0.4824645,46930.0,46929.0,0.79086752]
[1641149148022,0.2874645,46930.0,46929.0,0.79086752]
[1641149148822,0.4834645,46930.0,46927.0,0.84176712]
[1641149149120,0.12110442,46929.0,46927.0,0.84176712]
[1641149149522,0.08367294,46928.0,46927.0,0.84176712]
[1641149150322,0.17449302,46928.0,46927.0,0.84176712]
[1641149150522,0.17449302,46928.0,46926.0,0.88839143]
[1641149150523,1.62799042,46928.0,46926.0,1.73015855]
[1641149150924,1.63356539,46928.0,46926.0,1.73015855]
[1641149151224,1.42320712,46927.0,46925.0,0.84176712]
[1641149151422,1.42320712,46927.0,46925.0,1.02176712]
[1641149152223,1.33238704,46928.0,46926.0,1.70504331]
[1641149152824,1.46638704,46928.0,46927.0,0.86327619]
[1641149153024,0.134,46928.0,46927.0,1.70504331]
[1641149154137,1.42320712,46928.0,46927.0,0.86327619]
[1641149154739,1.33238704,46928.0,46927.0,0.86327619]
[1641149154942,1.52938704,46928.0,46927.0,0.86327619]
[1641149155139,1.65049713,46928.0,46927.0,0.86327619]
[1641149155540,1.74131721,46928.0,46927.0,0.86327619]
[1641149155741,1.76263203,46928.0,46927.0,0.86327619]
[1641149155941,1.76263203,46928.0,46927.0,0.80271738]
[1641149156141,0.5,46927.0,46924.0,1.35052416]
[1641149156341,1.792,46925.0,46924.0,1.21018849]
[1641149156541,1.793,46925.0,46924.0,1.21018849]
[1641149156741,2.53428309,46925.0,46924.0,0.60067169]
[1641149156942,2.53428309,46925.0,46917.0,1.19574642]
[1641149156943,2.74560549,46925.0,46917.0,1.19574642]
[1641149157241,1.81332381,46918.0,46913.0,1.44346034]
[1641149157445,1.793,46914.0,46913.0,1.39016034]
[1641149157641,1.793,46914.0,46897.0,3.8392]
[1641149157841,0.64033567,46907.0,46897.0,3.8392]
[1641149158040,1.84907163,46907.0,46896.0,1.65655962]
[1641149158241,1.792,46897.0,46896.0,1.65655962]
[1641149158441,1.8731,46897.0,46886.0,1.65655962]
[1641149158641,1.612,46894.0,46886.0,1.65655962]
[1641149158842,1.612,46894.0,46887.0,0.0121184]
[1641149159043,1.63333135,46892.0,46886.0,1.00999496]
[1641149159443,1.612,46888.0,46886.0,1.00999496]
[1641149159642,0.10020207,46887.0,46886.0,1.00999496]
[1641149160245,0.60020207,46887.0,46882.0,1.27136967]
[1641149160445,0.60020207,46887.0,46886.0,0.01211955]
[1641149160645,0.60020207,46887.0,46883.0,0.01211955]
[1641149160846,0.75520207,46887.0,46883.0,0.01211955]
[1641149161047,0.75520207,46887.0,46886.0,0.01211955]
[1641149161246,0.75520207,46887.0,46884.0,0.01211955]
[1641149161447,0.75520207,46887.0,46886.0,0.01211955]
[1641149161649,0.75520207,46887.0,46885.0,0.01211955]
[1641149162048,0.75520207,46887.0,46880.0,0.01211955]
[1641149162248,0.60020207,46887.0,46880.0,0.01211955]
[1641149162850,0.74520207,46887.0,46880.0,0.01211955]
[1641149163249,0.24520207,46887.0,46880.0,0.19211955]
[1641149163453,0.24520207,46887.0,46885.0,0.12]
[1641149163649,0.145,46887.0,46885.0,0.08659]
[1641149164053,1.31333392,46886.0,46885.0,0.08659]
[1641149164253,1.81333392,46886.0,46885.0,0.08659]
[1641149164551,1.81433392,46886.0,46885.0,0.08659]
[1641149164753,0.02133392,46886.0,46881.0,0.18]
[1641149164953,0.19364869,46886.0,46885.0,0.13211957]
[1641149165255,0.19,46886.0,46885.0,0.19024]
[1641149165453,0.69,46886.0,46885.0,0.19024]
[1641149165654,0.19,46886.0,46885.0,0.08235957]
[1641149165855,0.19,46886.0,46885.0,0.22269524]
[1641149166257,0.02133216,46890.0,46885.0,0.22269524]
[1641149166455,0.5,46889.0,46885.0,0.22269524]
[1641149167056,0.5,46889.0,46885.0,0.21057567]
[1641149168458,0.5,46889.0,46886.0,0.06]
[1641149168657,0.57721066,46888.0,46885.0,0.21057567]
[1641149168858,0.70133446,46886.0,46885.0,0.14033567]
[1641149169058,0.70133446,46886.0,46879.0,0.14033567]
[1641149169258,0.5,46881.0,46879.0,0.14033567]
[1641149169461,0.5,46885.0,46879.0,0.14033567]
[1641149169660,0.168,46889.0,46881.0,0.06]
[1641149169860,0.14033567,46886.0,46881.0,0.18]
[1641149170062,0.14033567,46886.0,46882.0,0.01212055]
[1641149170268,0.14033567,46886.0,46882.0,0.10050055]
[1641149170661,0.14033567,46886.0,46882.0,0.08838]
[1641149170861,0.32033567,46886.0,46882.0,0.08838]
[1641149171562,0.18,46886.0,46885.0,0.18]
[1641149172163,0.14033567,46894.0,46884.0,0.14033567]
[1641149172366,0.64033567,46894.0,46884.0,0.14033567]
[1641149172967,1.566348,46893.0,46884.0,0.14033567]
[1641149173966,1.566348,46893.0,46886.0,0.18]
[1641149174864,1.244348,46893.0,46891.0,0.18]
[1641149175166,0.178,46893.0,46892.0,0.18]
[1641149175566,0.178,46893.0,46887.0,0.03111939]
[1641149175767,0.178,46893.0,46892.0,0.14033567]
[1641149176266,0.02132812,46899.0,46892.0,0.14033567]
[1641149176968,0.19232812,46899.0,46892.0,0.14033567]
[1641149178270,0.02132812,46899.0,46892.0,0.14033567]
[1641149178867,0.21932812,46899.0,46892.0,0.14033567]
[1641149179068,0.198,46899.0,46892.0,0.14033567]
[1641149179469,0.198,46899.0,46896.0,0.18]
[1641149180269,0.5022864,46903.0,46892.0,0.14033567]
[1641149180474,0.00363884,46898.0,46892.0,0.14033567]
[1641149180672,0.00363884,46902.0,46892.0,0.14033567]
[1641149181071,0.00363884,46897.0,46892.0,0.14033567]
[1641149181272,1.06980484,46901.0,46892.0,0.14033567]
[1641149181471,1.56980484,46901.0,46892.0,0.14033567]
[1641149181673,0.00363884,46896.0,46892.0,0.14033567]
[1641149181871,1.15318792,46900.0,46892.0,0.14033567]
[1641149182072,0.00363884,46895.0,46892.0,0.14033567]
[1641149182274,0.00363884,46899.0,46892.0,0.14033567]
[1641149182472,0.00363884,46894.0,46892.0,0.14033567]
[1641149182873,0.00363884,46898.0,46893.0,0.18]
[1641149183076,0.12,46899.0,46896.0,0.18]
[1641149184276,0.02132669,46902.0,46892.0,0.14033567]
[1641149184480,0.07345,46900.0,46892.0,0.14033567]
[1641149185579,0.021328,46899.0,46892.0,0.14033567]
[1641149185778,1.17781576,46899.0,46892.0,0.14033567]
[1641149186176,0.52361277,46903.0,46898.0,0.18]
[1641149186676,0.52361277,46903.0,46892.0,0.14033567]
[1641149186876,1.066086,46902.0,46893.0,0.18]
[1641149187076,1.153386,46902.0,46893.0,0.18]
[1641149187475,1.17471284,46902.0,46892.0,0.14033567]
[1641149187696,0.5,46901.0,46892.0,0.14033567]
[1641149188079,0.02132955,46896.0,46892.0,0.14033567]
[1641149188677,0.52132727,46901.0,46892.0,0.14033567]
[1641149188878,0.175,46896.0,46892.0,0.14033567]
[1641149189282,0.175,46896.0,46895.0,0.18]
[1641149189679,0.175,46896.0,46892.0,0.14033567]
[1641149190178,0.02132725,46901.0,46892.0,0.14033567]
[1641149190379,0.02132803,46899.0,46892.0,0.14033567]
[1641149190780,0.06895444,46898.0,46892.0,0.14033567]
[1641149192981,0.24195444,46898.0,46892.0,0.14033567]
[1641149194283,0.06895444,46898.0,46892.0,0.14033567]
[1641149194484,0.06895444,46898.0,46892.0,0.32033567]
[1641149194985,0.24995444,46898.0,46892.0,0.32033567]
[1641149195197,0.181,46898.0,46892.0,0.32033567]
[1641149196187,0.02132803,46899.0,46895.0,0.18]
[1641149196994,0.20832803,46899.0,46895.0,0.18]
[1641149197599,0.187,46899.0,46895.0,0.18]
[1641149198298,0.46027358,46902.0,46895.0,0.18]
[1641149198496,0.36195073,46902.0,46899.0,0.18]
[1641149198695,0.36195073,46902.0,46892.0,0.14033567]
[1641149198897,1.066086,46901.0,46899.0,0.18]
[1641149199498,1.066086,46901.0,46892.0,0.14033567]
[1641149199896,1.066086,46901.0,46894.0,0.18]
[1641149200300,1.066086,46901.0,46892.0,0.26033567]
[1641149200900,1.243086,46901.0,46892.0,0.26033567]
[1641149201199,1.60503673,46901.0,46892.0,0.26033567]
[1641149201399,1.60503673,46901.0,46892.0,0.14033567]
[1641149201999,1.243086,46901.0,46892.0,0.14033567]
[1641149202398,1.066086,46901.0,46892.0,0.14033567]
[1641149202802,1.066177,46902.0,46892.0,0.14033567]
[1641149203001,0.178,46901.0,46892.0,0.14033567]
[1641149203201,1.066177,46900.0,46892.0,0.14033567]
[1641149203407,0.27032,46901.0,46892.0,0.14033567]
[1641149204004,1.066177,46900.0,46892.0,0.14033567]
[1641149204205,0.36195073,46897.0,46892.0,0.14033567]
[1641149204805,0.36195073,46897.0,46894.0,0.12]
[1641149205004,0.54595073,46897.0,46894.0,0.12]
[1641149205605,0.54595073,46897.0,46896.0,0.06]
[1641149205910,0.184,46897.0,46896.0,0.06]
[1641149206308,0.60283042,46898.0,46896.0,0.06]
[1641149206508,0.60283042,46898.0,46892.0,0.32033567]
[1641149207011,0.78083042,46898.0,46892.0,0.32033567]
[1641149207511,0.78083042,46898.0,46897.0,0.18]
[1641149207708,0.178,46898.0,46897.0,0.18]
[1641149208308,0.84295934,46899.0,46897.0,0.18]
[1641149208509,0.84295934,46899.0,46898.0,0.18]
[1641149208709,0.84295934,46900.0,46892.0,0.14033567]
[1641149208908,0.05866,46899.0,46892.0,0.14033567]
[1641149209108,0.23066,46899.0,46892.0,0.14033567]